bitfinex/quotes_ETHUSD_20250925
["timestamp","ask_amount","ask_price","bid_price","bid_amount"]
[1758765602969,0.001,4109.9,4109.8,2.55480842]
[1758765603264,0.001,4109.9,4109.8,6.86580842]
[1758765603464,0.001,4109.9,4109.8,6.74420842]
[1758765603833,11.38851249,4109.9,4109.8,2.43320842]
[1758765604030,12.08451249,4109.9,4109.8,2.43320842]
[1758765604536,12.08451249,4109.9,4109.4,2.43339008]
[1758765604537,11.61811249,4109.9,4109.4,2.43340554]
[1758765604738,3.0,4109.4,4109.2,0.002]
[1758765605144,3.0,4109.4,4109.3,2.43350448]
[1758765605330,4.7764,4109.8,4109.6,2.43331994]
[1758765605331,3.0,4109.7,4109.6,2.43331994]
[1758765605547,3.001,4109.9,4109.7,2.86246763]
[1758765605743,0.1216,4109.8,4109.7,2.86246763]
[1758765606068,0.1216,4109.8,4109.7,2.43326763]
[1758765607074,0.8176,4109.8,4109.2,2.43555051]
[1758765607253,11.38751249,4109.6,4109.5,2.43338605]
[1758765607454,3.0,4109.6,4109.5,2.43338605]
[1758765608381,0.1216,4109.5,4109.2,0.002]
[1758765608541,3.0,4109.3,4109.2,0.002]
[1758765609175,3.696,4109.3,4109.2,0.002]
[1758765609782,4.814185,4109.3,4109.2,0.002]
[1758765610281,7.24768948,4109.3,4109.2,0.002]
[1758765613185,8.7569,4109.3,4109.2,0.002]
[1758765613343,3.0,4109.3,4109.2,0.002]
[1758765613849,7.40262157,4109.3,4109.2,0.002]
[1758765614102,7.305,4109.3,4109.2,2.43556371]
[1758765614599,7.305,4109.3,4109.2,0.002]
[1758765614956,3.0,4109.3,4109.2,2.68216371]
[1758765615205,0.001,4109.9,4109.7,2.43322116]
[1758765615370,4.304,4109.8,4109.6,2.43332684]
[1758765615564,4.304,4109.8,4109.7,2.43326763]
[1758765615765,7.304,4109.8,4109.7,2.43326763]
[1758765615963,3.0,4109.8,4109.7,2.43326763]
[1758765616166,0.001,4109.9,4109.8,2.43320842]
[1758765616394,0.001,4109.9,4109.8,2.67980842]
[1758765617758,0.001,4109.9,4109.8,3.14780842]
[1758765618011,4.303,4110.1,4109.8,3.14780842]
[1758765618166,1e-08,4110.6,4109.8,0.7146]
[1758765618359,1e-08,4110.6,4110.5,2.43279406]
[1758765618584,4.30200001,4110.6,4110.4,2.43284631]
[1758765618794,7.30200001,4110.6,4110.5,2.43279406]
[1758765619471,1e-08,4110.6,4110.5,2.43279406]
[1758765619663,1e-08,4110.6,4110.5,3.14739406]
[1758765620272,1e-08,4110.6,4110.5,0.7146]
[1758765620466,1e-08,4110.6,4110.5,3.14739406]
[1758765621944,1e-08,4110.6,4110.5,3.171722]
[1758765622425,1e-08,4110.6,4110.5,3.26899406]
[1758765623521,1e-08,4110.6,4110.5,7.56699406]
[1758765624416,0.23405039,4113.1,4112.5,2.43155625]
[1758765624598,0.1208,4112.3,4112.2,2.43178833]
[1758765625830,0.1208,4112.3,4111.9,4.5426]
[1758765626008,0.1208,4112.3,4112.2,2.43178833]
[1758765626205,0.3632,4112.3,4111.3,0.2466]
[1758765626409,0.1208,4111.9,4111.8,2.4320249]
[1758765626810,2.43062285,4114.2,4111.8,5.0106]
[1758765627117,0.2424,4113.0,4112.6,2.43149846]
[1758765627316,0.1208,4112.4,4112.1,4.295]
[1758765627631,0.1208,4112.4,4112.2,2.43178833]
[1758765627832,0.1208,4112.4,4112.3,2.4317292]
[1758765628148,0.2424,4113.5,4113.0,2.43130949]
[1758765628430,3.0,4113.5,4112.6,0.468]
[1758765628638,0.6717,4113.4,4112.1,0.468]
[1758765628852,0.2424,4113.3,4112.9,2.43136459]
[1758765629036,0.2424,4113.3,4112.8,2.43139663]
[1758765629240,25.50041893,4113.5,4112.0,0.2466]
[1758765629241,0.2424,4113.2,4112.0,0.2466]
[1758765629444,3.0,4112.8,4111.8,0.2466]
[1758765629650,3.4293,4112.8,4112.3,2.43172047]
[1758765629810,0.6717,4112.7,4112.4,2.43166512]
[1758765630010,3.0,4112.8,4112.7,2.43149269]
[1758765630206,3.0,4112.9,4112.7,2.43149269]
[1758765630445,3.6717,4112.9,4112.7,2.43149269]
[1758765631245,3.2424,4112.9,4112.1,0.2466]
[1758765631449,3.0,4112.9,4112.1,0.2466]
[1758765631744,3.0,4112.9,4112.8,2.43143357]
[1758765632327,3.0,4112.9,4112.7,2.43148608]
[1758765632525,3.0,4112.9,4112.4,2.43167007]
[1758765632725,3.0,4112.9,4112.7,2.43144076]
[1758765633036,3.2424,4112.9,4112.5,2.43160504]
[1758765633236,0.2424,4112.9,4112.7,2.43144245]
[1758765633546,0.2424,4112.9,4112.7,2.43143856]
[1758765633745,0.2424,4112.9,4112.2,0.468]
[1758765633952,0.2424,4112.9,4112.8,2.43143357]
[1758765634125,3.0,4113.0,4112.8,2.43143357]
[1758765634321,3.0,4113.0,4112.9,2.43137445]
[1758765635156,2.027,4113.6,4113.0,2.43128646]
[1758765635323,22.50041893,4114.1,4112.7,0.2466]
[1758765635648,4.9617,4114.0,4113.6,2.43095966]
[1758765635816,3.2424,4113.9,4113.6,2.43095966]
[1758765636017,3.2424,4113.9,4113.1,2.67785517]
[1758765636215,3.2424,4113.9,4113.7,2.43084974]
[1758765636416,3.0,4113.9,4113.1,0.2466]
[1758765636640,3.2424,4113.9,4113.1,0.02431256]
[1758765636940,3.2424,4113.9,4113.4,2.4310614]
[1758765637292,0.6717,4113.8,4112.8,0.2466]
[1758765637442,0.6717,4113.8,4113.3,2.43112063]
[1758765637641,0.6717,4113.7,4113.1,2.43125233]
[1758765637887,3.0,4113.5,4112.8,0.2466]
[1758765638035,3.0,4113.5,4113.3,2.43108875]
[1758765638240,3.0,4113.5,4113.4,2.43107891]
[1758765640174,0.1208,4113.4,4113.2,0.2466]
[1758765640364,0.1208,4113.4,4113.3,2.43113801]
[1758765640540,0.1208,4113.4,4113.3,3.14573801]
[1758765640738,0.1208,4113.4,4113.3,2.89913801]
[1758765640983,4.286,4114.4,4113.3,0.7146]
[1758765641144,4.286,4114.4,4114.2,2.43057413]
[1758765641473,4.286,4114.4,4114.3,2.43054338]
[1758765641686,0.73117677,4115.5,4115.0,2.43008202]
[1758765641982,0.73117677,4115.5,4113.7,4.86180324]
[1758765641983,23.17211893,4115.4,4114.3,0.2466]
[1758765642274,23.17211893,4115.4,4113.3,2.026]
[1758765642275,4.285,4115.3,4114.4,0.6767]
[1758765642461,22.73341893,4115.6,4114.5,0.2355]
[1758765642663,4.285,4115.5,4115.2,2.43000533]
[1758765642873,2.4594,4115.8,4115.3,2.42995614]
[1758765642874,4.285,4115.4,4115.3,2.42995614]
[1758765643038,0.4334,4115.8,4115.1,2.43005176]
[1758765643381,6.311,4115.7,4114.8,0.70100251]
[1758765643575,6.311,4115.7,4115.3,2.42991234]
[1758765643773,3.0,4115.6,4115.3,2.42991234]
[1758765643937,3.0,4115.6,4115.2,2.43001201]
[1758765644345,0.233,4115.6,4115.0,2.43012773]
[1758765644542,3.0,4115.4,4115.2,2.42996821]
[1758765644764,0.6664,4115.3,4114.4,0.2355]
[1758765644971,3.0,4115.1,4114.4,0.2355]
[1758765645171,3.0,4114.9,4114.4,0.2355]
[1758765645375,0.78951573,4115.8,4114.5,0.4412]
[1758765645680,3.0,4115.6,4114.6,0.2355]
[1758765645846,3.0,4115.6,4114.7,0.4412]
[1758765646047,3.0,4115.4,4115.2,2.42996716]
[1758765646243,3.0,4115.4,4115.0,2.43012574]
[1758765646444,3.0,4115.4,4115.1,2.4300746]
[1758765646690,3.0,4115.4,4115.0,0.2355]
[1758765646845,3.0,4115.4,4115.1,2.4300243]
[1758765647175,3.0,4115.4,4115.1,2.4300581]
[1758765647391,0.12311573,4115.8,4115.6,2.42977403]
[1758765647555,7.282,4115.9,4115.4,2.42989532]
[1758765647756,7.4034508,4115.9,4115.4,2.42987097]
[1758765648192,11.549586,4116.0,4115.5,0.4412]
[1758765648415,4.281,4115.8,4115.5,0.6767]
[1758765648609,3.0,4115.7,4115.6,2.42977937]
[1758765648919,4.281,4115.9,4115.8,2.4296613]
[1758765649214,14.549586,4116.0,4115.9,2.42960227]
[1758765649381,14.549586,4116.0,4115.9,3.10630227]
[1758765649383,11.549586,4116.0,4115.9,3.10630227]
[1758765650287,11.549586,4116.0,4115.9,2.42960227]
[1758765650482,3.0,4115.9,4115.3,0.2355]
[1758765650685,3.0,4115.9,4115.4,2.42984095]
[1758765651022,0.1208,4115.8,4115.6,2.42972705]
[1758765651340,0.1208,4115.8,4115.7,3.10642033]
[1758765651684,11.549586,4116.0,4115.9,2.42960227]
[1758765651919,11.549586,4116.0,4115.7,2.87091389]
[1758765652090,14.549586,4116.0,4115.9,0.2355]
[1758765652292,3.0,4115.9,4115.7,2.42967324]
[1758765652533,3.0,4115.9,4115.4,0.4412]
[1758765652832,3.0,4115.9,4115.0,2.025]
[1758765653124,3.0,4115.9,4115.3,2.42990905]
[1758765653636,3.0,4115.9,4115.3,0.4412]
[1758765653840,3.0,4115.9,4115.3,2.42992097]
[1758765654790,3.0,4115.9,4115.4,2.42989543]
[1758765654993,3.0,4115.9,4115.1,2.43004979]
[1758765655191,3.0,4115.7,4114.9,2.4301414]
[1758765655414,4.277,4115.7,4115.3,2.42990932]
[1758765655592,4.277,4115.7,4115.4,2.42989649]
[1758765655802,4.277,4115.7,4115.2,14.5]
[1758765656006,4.277,4115.7,4115.0,0.6767]
[1758765656408,7.37312506,4115.7,4114.9,2.43015884]
[1758765656738,3.0,4115.6,4114.8,14.5]
[1758765656927,0.233,4115.5,4115.1,2.43005317]
[1758765657142,4.276,4115.4,4115.0,2.43012108]
[1758765657438,4.276,4115.4,4114.8,14.5]
[1758765658013,4.276,4115.4,4115.1,2.43002954]
[1758765658245,3.0,4115.8,4114.8,14.5]
[1758765658417,4.275,4115.6,4115.1,2.43004774]
[1758765658610,4.275,4115.6,4115.0,2.43012623]
[1758765658805,4.508,4115.6,4114.9,0.02430192]
[1758765659010,4.508,4115.6,4114.6,0.2355]
[1758765659210,4.508,4115.6,4114.9,2.43014166]
[1758765659452,4.508,4115.6,4114.7,3.0]
[1758765659453,22.50041893,4115.4,4114.1,0.2355]
[1758765659741,22.50041893,4115.4,4114.6,14.5]
[1758765659742,4.9414,4115.3,4114.6,14.5]
[1758765659929,4.9414,4115.3,4114.7,2.43030775]
[1758765660129,4.9414,4115.3,4114.8,2.4302284]
[1758765660332,0.6664,4115.2,4114.2,5.43060619]
[1758765660532,24.93068442,4114.8,4113.9,2.43074596]
[1758765660731,4.9404,4114.7,4113.6,0.4412]
[1758765660930,4.9404,4114.7,4113.7,2.43090162]
[1758765660931,0.2289,4114.6,4113.7,2.43090162]
[1758765661131,0.2289,4114.6,4113.8,2.4308286]
[1758765661445,0.2289,4114.5,4113.6,2.43093792]
[1758765661644,4.274,4114.4,4113.7,0.6724]
[1758765661860,0.1208,4114.1,4114.0,2.43072435]
[1758765662816,0.1208,4114.1,4113.7,2.66649807]
[1758765663151,0.1208,4114.1,4113.4,0.1208]
[1758765663368,3.0,4114.0,4113.4,2.43106846]
[1758765663572,0.1208,4113.7,4113.3,2.66872512]
[1758765663736,4.5019,4114.1,4113.3,0.002]
[1758765663737,26.77341893,4113.6,4113.3,0.002]
[1758765663937,0.792,4113.4,4113.3,0.002]
[1758765664175,8.065,4113.4,4113.3,0.002]
[1758765664334,8.7443,4113.4,4113.3,0.002]
[1758765664549,11.17537891,4113.4,4113.3,0.002]
[1758765665149,8.7443,4113.4,4113.3,0.002]
[1758765665562,11.17537891,4113.4,4113.3,0.002]
[1758765666692,11.17537891,4113.4,4111.5,0.1216]
[1758765666693,3.792,4113.3,4111.5,0.1216]
[1758765666990,3.792,4113.3,4111.1,0.3572]
[1758765666991,3.1208,4112.1,4111.1,0.3572]
[1758765667137,3.0,4111.9,4111.1,0.2356]
[1758765667343,0.1216,4111.3,4111.2,2.43237863]
[1758765667748,0.1216,4111.3,4111.2,3.10477863]
[1758765669790,0.1216,4111.3,4110.7,2.78987404]
[1758765669945,0.1216,4111.3,4111.1,2.43243862]
[1758765670141,0.1216,4111.3,4111.2,2.43237984]
[1758765670370,0.2785481,4113.3,4112.5,2.43155549]
[1758765670371,2.026,4112.9,4112.5,2.43155549]
[1758765670581,4.272,4112.8,4112.5,2.43155549]
[1758765670775,3.0,4112.7,4112.2,0.2356]
[1758765670979,0.1208,4112.5,4112.4,2.43167007]
[1758765671777,0.73149589,4113.5,4113.0,2.43131534]
[1758765671984,4.272,4113.4,4113.3,2.43113801]
[1758765672185,0.12233188,4113.8,4113.7,2.4308812]
[1758765672368,6.297,4113.9,4113.8,2.43084253]
[1758765672686,3.0,4114.3,4114.2,2.43055711]
[1758765673195,4.271,4114.4,4114.3,2.43054711]
[1758765673647,25.39612604,4115.4,4114.3,2.43054711]
[1758765673648,4.271,4114.9,4114.3,0.709]
[1758765673845,22.96621893,4115.4,4114.3,0.709]
[1758765673846,0.1208,4114.4,4114.3,2.43054711]
[1758765674588,2.026,4115.4,4114.7,2.43030613]
[1758765674742,0.1208,4114.7,4114.6,2.4303699]
[1758765675875,0.1208,4114.7,4114.3,0.709]
[1758765676071,0.1208,4114.7,4114.5,2.43040876]
[1758765676774,0.1208,4114.7,4114.0,0.369]
[1758765676978,0.1208,4114.7,4114.5,2.43038269]
[1758765677162,0.1208,4114.7,4114.6,2.6785699]
[1758765677365,0.1208,4114.7,4114.6,3.1393699]
[1758765677565,0.12661362,4115.7,4115.4,2.42984692]
[1758765677878,0.1208,4115.0,4114.9,2.43019271]
[1758765678105,0.1208,4115.0,4114.9,2.45449463]
[1758765678251,0.1208,4115.0,4114.3,4.269]
[1758765678484,0.1208,4114.5,4113.8,3.01243461]
[1758765678686,0.1208,4114.5,4114.0,2.4306745]
[1758765678905,0.1208,4114.9,4114.2,0.1208]
[1758765679292,0.1208,4114.9,4114.3,0.2482]
[1758765679493,0.1208,4114.6,4114.3,2.43053742]
[1758765679704,0.1208,4114.6,4114.5,2.43042897]
[1758765680101,0.001,4115.3,4114.9,2.43017571]
[1758765680416,0.1208,4115.0,4114.9,2.43017571]
[1758765680791,0.1208,4115.0,4114.9,3.13917571]
[1758765680993,0.001,4115.3,4115.2,2.43001555]
[1758765681389,0.001,4115.3,4115.2,2.67821555]
[1758765682436,0.001,4115.3,4115.2,3.13901555]
[1758765683447,0.001,4115.3,4115.2,3.25981555]
[1758765684924,0.001,4115.3,4115.2,22.02581555]
[1758765685125,0.001,4115.3,4115.2,21.56501555]
[1758765685449,0.001,4115.3,4115.2,7.52581555]
[1758765686931,7.09459667,4116.0,4115.9,2.42960227]
[1758765687124,4.62336557,4117.6,4117.3,2.42877549]
[1758765687335,0.2371,4117.9,4116.9,4.265]
[1758765687553,3.0,4118.1,4116.9,4.264]
[1758765687728,0.2371,4118.0,4117.3,2.42873967]
[1758765687924,3.7029,4117.9,4117.1,2.42884918]
[1758765688131,0.2371,4117.8,4116.9,4.264]
[1758765688453,0.2371,4117.8,4117.3,2.42872519]
[1758765688638,0.2371,4117.8,4117.1,2.42883685]
[1758765688844,0.2371,4117.8,4117.2,2.42881721]
[1758765689046,0.12274681,4118.0,4116.9,6.94115512]
[1758765689047,0.7029,4117.7,4116.9,4.264]
[1758765689247,0.7029,4117.6,4116.9,4.264]
[1758765689417,0.7029,4117.6,4117.0,2.42895312]
[1758765689814,0.7029,4117.6,4117.1,2.42889211]
[1758765690015,0.7029,4117.6,4117.0,2.42893865]
[1758765690258,4.9659,4117.6,4116.5,0.2482]
[1758765690621,3.0,4117.5,4116.5,0.2482]
[1758765690817,3.0,4117.5,4116.5,4.263]
[1758765691023,3.0,4117.5,4116.6,2.42917554]
[1758765691024,0.2371,4117.4,4116.6,2.42917554]
[1758765691244,0.2371,4117.4,4116.2,0.2482]
[1758765691445,0.4658,4117.3,4116.4,2.42930716]
[1758765691760,0.4658,4117.3,4116.2,0.2482]
[1758765691941,0.2371,4117.2,4116.3,4.262]
[1758765692145,0.2371,4117.2,4116.9,2.42896378]
[1758765692347,3.0,4117.5,4116.9,2.42896387]
[1758765692664,3.2371,4117.5,4116.9,2.42896387]
[1758765692816,3.2371,4117.5,4116.3,4.7228]
[1758765692817,3.0,4117.5,4116.4,0.2482]
[1758765693015,3.0,4117.5,4116.5,0.2482]
[1758765693221,3.2371,4117.5,4116.8,2.42905921]
[1758765693434,5.66576094,4117.5,4116.5,2.67742215]
[1758765693671,6.68950476,4117.8,4116.7,2.42913012]
[1758765693855,5.66564226,4117.7,4116.9,2.42896308]
[1758765694147,2.42864982,4117.6,4116.6,0.709]
[1758765694359,0.2371,4117.5,4116.6,0.2482]
[1758765694649,4.261,4117.8,4116.7,0.4850913]
[1758765694853,3.35984681,4118.0,4117.3,2.42876234]
[1758765695052,4.261,4117.9,4117.3,2.42876234]
[1758765695355,4.261,4117.9,4117.2,2.42882292]
[1758765695552,4.261,4117.9,4116.8,14.7482]
[1758765695761,4.261,4117.9,4117.4,2.428717]
[1758765695953,0.00254354,4117.8,4117.4,2.428717]
[1758765696263,0.00254354,4117.8,4117.6,2.42859609]
[1758765696621,0.00254354,4117.8,4117.4,2.42869934]
[1758765696929,0.1208,4117.6,4117.3,2.42876095]
[1758765697142,0.1208,4117.6,4116.9,0.1208]
[1758765697348,0.1208,4117.6,4117.4,2.42867277]
[1758765697565,0.12334354,4117.6,4116.9,2.54980421]
[1758765697767,0.12334354,4117.6,4116.9,0.1208]
[1758765698076,0.00254354,4117.6,4117.2,2.42878882]
[1758765698293,0.00254354,4117.6,4117.2,2.42878025]
[1758765698632,0.1208,4117.2,4116.8,14.7482]
[1758765698977,0.1208,4117.2,4116.8,15.209]
[1758765699179,0.1208,4117.2,4116.9,2.67721212]
[1758765699353,0.1208,4117.2,4117.0,2.42890521]
[1758765699553,0.1208,4117.2,4117.1,2.42889412]
[1758765700057,0.1208,4117.2,4117.1,2.45318306]
[1758765700257,0.00254354,4117.6,4117.1,4.967]
[1758765700459,0.00354354,4117.6,4117.4,2.42870145]
[1758765700656,0.00354354,4117.6,4117.1,4.258]
[1758765700895,0.00354354,4117.6,4117.3,2.42872919]
[1758765701036,0.00354354,4117.6,4117.1,4.967]
[1758765701242,0.00354354,4117.6,4117.5,2.42865816]
[1758765701757,0.00354354,4117.6,4117.5,2.67685816]
[1758765701965,0.00354354,4117.6,4117.5,3.13765816]
[1758765702272,4.257,4118.3,4117.8,2.42843584]
[1758765702755,4.257,4118.3,4117.7,2.42853625]
[1758765702953,4.257,4118.3,4117.6,2.42857549]
[1758765703136,4.257,4118.3,4117.6,2.42859918]
[1758765703335,4.257,4118.3,4117.5,3.13764151]
[1758765703534,4.257,4118.3,4118.0,2.42831328]
[1758765703747,4.257,4118.3,4117.9,2.42840619]
[1758765704269,4.257,4118.3,4117.5,0.709]
[1758765704441,4.257,4118.3,4118.1,2.42825303]
[1758765705346,4.257,4118.3,4118.2,2.42824534]
[1758765705542,0.12353784,4118.7,4117.6,4.256]
[1758765705746,7.256,4119.2,4117.7,0.6917854]
[1758765706050,2.42772914,4119.1,4118.2,2.42819487]
[1758765706264,3.0,4119.0,4118.3,2.42817633]
[1758765706469,0.12380709,4119.1,4118.4,2.42810985]
[1758765706645,4.2717,4119.2,4117.8,0.6675]
[1758765706836,3.0,4118.9,4117.3,0.2299]
[1758765707048,3.0771,4119.1,4117.4,0.6675]
[1758765707049,0.792,4118.8,4117.4,0.6675]
[1758765707341,0.792,4118.6,4117.3,2.42877595]
[1758765707545,0.0157,4118.5,4117.2,0.6675]
[1758765707849,3.8077,4118.5,4117.2,1.3015]
[1758765708172,0.8077,4118.5,4117.6,2.42856768]
[1758765708473,2.42814038,4118.4,4117.6,2.42856768]
[1758765708685,0.8077,4118.5,4117.3,0.2299]
[1758765708841,0.8077,4118.5,4116.9,2.42900712]
[1758765709052,0.0614,4118.4,4117.4,2.42871531]
[1758765709279,0.792,4118.8,4117.7,2.42849006]
[1758765709480,3.792,4118.8,4116.9,3.413]
[1758765709779,2.42801075,4118.6,4117.7,2.42853432]
[1758765709980,2.42812389,4118.5,4117.4,2.42870834]
[1758765710167,0.1208,4117.9,4117.3,0.2299]
[1758765710546,0.1208,4117.9,4117.7,2.42848577]
[1758765711051,0.1208,4117.9,4117.6,2.42858633]
[1758765711246,0.1208,4117.9,4117.7,0.4376]
[1758765711458,0.1208,4117.9,4117.8,3.09598122]
[1758765712755,0.73046108,4119.1,4117.8,3.09598122]
[1758765712756,2.42783491,4118.9,4118.1,2.42828111]
[1758765713578,0.391,4119.0,4118.4,2.42809599]
[1758765713760,0.391,4119.0,4117.9,2.42837557]
[1758765713961,0.391,4119.0,4117.8,0.6675]
[1758765713962,5.42788758,4118.9,4118.0,2.42836328]
[1758765714282,2.42789161,4118.8,4117.9,2.42837558]
[1758765714482,2.42797301,4118.7,4117.9,2.42837597]
[1758765714794,2.42794775,4118.8,4118.0,2.42835692]
[1758765714968,2.4279681,4118.7,4117.9,2.42840792]
[1758765715162,2.42790548,4118.8,4118.0,2.42835821]
[1758765715369,5.44354248,4118.9,4118.1,2.42829259]
[1758765715682,0.0157,4118.9,4118.1,2.42829259]
[1758765715989,0.792,4118.8,4117.7,0.4376]
[1758765716196,5.42800105,4118.7,4117.7,2.8661063]
[1758765716357,5.42800105,4118.7,4117.9,2.42841674]
[1758765716689,3.0,4118.7,4117.7,0.4376]
[1758765716890,2.42800951,4118.6,4117.8,2.42848122]
[1758765717091,3.0,4118.8,4117.7,0.4376]
[1758765717281,3.0,4118.9,4117.7,0.4618854]
[1758765717481,7.252,4118.9,4118.5,2.42803969]
[1758765717678,4.84266373,4119.2,4118.5,0.6675]
[1758765717679,3.0,4119.1,4118.5,0.6675]
[1758765717883,2.42751762,4119.5,4118.8,2.4278856]
[1758765718192,3.0,4119.3,4119.0,2.42776998]
[1758765718364,3.0,4119.3,4119.0,3.09526998]
[1758765718788,3.0,4119.3,4119.0,0.6675]
[1758765718978,2.42749508,4119.5,4119.0,0.6675]
[1758765719291,3.0,4119.3,4119.0,0.6675]
[1758765719498,5.42761069,4119.3,4118.5,2.42802524]
[1758765719796,0.001,4118.8,4118.5,2.42802524]
[1758765719979,0.001,4118.8,4118.6,0.6675]
[1758765720373,0.001,4118.8,4118.6,2.42795078]
[1758765720959,0.001,4118.8,4118.3,0.6675]
[1758765721185,0.001,4118.8,4118.4,2.42807481]
[1758765721353,0.001,4118.8,4117.9,2.023]
[1758765721354,0.001,4118.8,4118.0,2.4283384]
[1758765721559,0.001,4118.8,4118.0,0.2421]
[1758765721758,0.001,4118.8,4118.2,2.42824402]
[1758765722059,0.001,4118.8,4118.0,0.2421]
[1758765722260,0.001,4118.8,4118.3,2.42817736]
[1758765722777,0.1208,4118.4,4118.3,0.7153]
[1758765722973,0.1208,4118.4,4118.3,3.14348638]
[1758765723796,0.1208,4118.4,4118.3,0.7153]
[1758765724006,0.1208,4118.4,4118.3,3.14348638]
[1758765724668,0.1208,4118.4,4118.3,0.7153]
[1758765725598,0.1208,4118.4,4118.1,2.42826063]
[1758765725898,0.001,4118.8,4118.2,3.14350044]
[1758765726265,0.001,4118.8,4118.3,2.42818638]
[1758765726668,0.1208,4118.3,4118.2,2.42824534]
[1758765727183,0.1208,4118.3,4118.2,3.14354534]
[1758765728690,0.001,4118.8,4118.7,2.42795056]
[1758765729105,0.001,4118.8,4118.7,3.14325056]
[1758765729320,2.023,4119.7,4118.7,3.14325056]
[1758765729321,6.86501263,4122.9,4119.0,0.792]
[1758765729616,0.73028326,4120.7,4119.5,2.42747906]
[1758765729794,0.1208,4121.8,4121.0,0.1208]
[1758765730207,0.1822,4122.0,4121.0,0.1208]
[1758765730423,0.0167,4121.9,4120.9,3.099]
[1758765730804,0.8087,4121.9,4120.9,3.099]
[1758765731010,0.1822,4122.6,4121.0,0.7153]
[1758765731317,2.501,4123.2,4121.1,0.7153]
[1758765731633,2.42548653,4122.9,4121.2,0.7153]
[1758765731827,2.42548653,4122.9,4121.5,2.42624723]
[1758765732127,2.42548653,4122.9,4121.6,2.65332904]
[1758765732289,2.42542109,4123.0,4121.7,2.42617619]
[1758765732483,2.2219,4123.1,4121.7,2.42617619]
[1758765732680,2.42548302,4122.9,4121.6,0.6999]
[1758765732885,6.292,4123.0,4121.7,0.2271]
[1758765733081,4.268,4123.0,4121.8,2.89891996]
[1758765733382,5.42548919,4122.9,4121.9,2.67742587]
[1758765733704,4.3870798,4123.1,4122.1,2.42591653]
[1758765733918,2.4251195,4123.6,4122.3,2.4257759]
[1758765734136,2.42541665,4123.1,4122.4,0.2271]
[1758765734284,2.42526353,4123.3,4122.4,0.2271]
[1758765734614,2.42511917,4123.6,4122.5,2.42571255]
[1758765734920,0.12495959,4123.6,4122.6,0.2271]
[1758765735235,0.1989,4124.5,4122.8,2.42553604]
[1758765735522,3.0,4124.3,4122.9,0.6999]
[1758765735681,2.42474106,4124.2,4123.1,2.42534366]
[1758765735879,6.68974106,4124.2,4122.7,2.4255527]
[1758765736107,2.42463176,4124.4,4123.4,2.42517896]
[1758765736387,4.56812472,4124.6,4123.2,0.6999]
[1758765736612,6.287,4124.7,4123.3,0.6999]
[1758765736822,2.42476284,4124.2,4123.3,0.6999]
[1758765737143,2.42477189,4124.1,4123.3,0.6999]
[1758765737282,2.42484154,4124.0,4122.9,4.038]
[1758765737486,2.42484154,4124.0,4123.0,2.65251836]
[1758765737907,0.22128644,4124.6,4123.1,0.72415359]
[1758765738245,0.1822,4125.2,4123.1,0.72415359]
[1758765738246,2.60615998,4125.5,4123.2,0.6999]
[1758765738385,0.14361252,4125.7,4123.3,0.72415241]
[1758765738386,0.22018661,4124.7,4123.3,0.72415241]
[1758765738582,6.284,4125.4,4123.5,2.42512428]
[1758765738828,6.50860794,4125.4,4124.7,2.424411]
[1758765739021,6.50860794,4125.4,4123.6,2.74615065]
[1758765739022,6.50860794,4125.4,4124.8,0.6999]
[1758765739212,0.16734197,4126.1,4124.8,0.6999]
[1758765739411,2.59095013,4126.1,4124.9,0.2271]
[1758765739586,2.42378151,4125.8,4124.9,0.2271]
[1758765739792,2.59095013,4126.1,4124.9,0.2271]
[1758765739793,2.42376358,4125.9,4124.9,0.6999]
[1758765740015,0.38310725,4126.1,4124.5,0.2271]
[1758765740016,0.0167,4126.0,4124.5,0.2271]
[1758765740205,0.0167,4126.0,4123.8,0.2271]
[1758765740206,3.0,4125.8,4123.8,0.2271]
[1758765740402,0.1208,4124.4,4123.8,0.2271]
[1758765740587,0.1208,4124.4,4123.7,0.1208]
[1758765740799,4.273,4125.2,4123.3,0.2271]
[1758765740800,0.1989,4124.8,4123.3,0.2271]
[1758765740989,0.1989,4124.8,4123.3,0.3479]
[1758765740990,0.1208,4124.0,4123.3,0.3479]
[1758765741340,0.1208,4124.0,4123.3,0.34789922]
[1758765741634,0.8087,4124.5,4123.2,0.4728]
[1758765741836,0.792,4124.3,4123.2,0.4728]
[1758765742140,3.0,4124.1,4123.1,0.02425359]
[1758765742358,0.1989,4124.2,4122.6,0.4728]
[1758765742544,3.792,4123.8,4122.0,2.4948]
[1758765742748,0.1989,4123.8,4122.7,2.42559209]
[1758765742925,0.1989,4123.8,4122.4,2.42576337]
[1758765742926,0.0167,4123.7,4120.8,2.42671325]
[1758765743124,3.0,4123.3,4121.4,0.47613619]
[1758765743369,7.4749,4123.2,4122.0,2.42596045]
[1758765743530,7.4749,4123.2,4121.8,0.2271]
[1758765743735,7.4749,4123.2,4121.9,2.42606408]
[1758765744031,4.4749,4123.2,4121.8,0.2271]
[1758765744237,7.4749,4123.2,4121.8,0.2271]
[1758765744433,3.0,4123.1,4121.5,0.4728]
[1758765744671,4.273,4123.0,4122.2,2.42588717]
[1758765744873,3.0,4123.2,4122.0,0.2271]
[1758765745025,0.02427491,4123.4,4122.1,0.72415947]
[1758765745238,0.02427491,4123.4,4122.9,2.42547646]
[1758765745571,0.02427491,4123.4,4122.2,3.12574808]
[1758765745739,0.02427491,4123.4,4122.7,2.42558654]
[1758765746233,0.02427491,4123.4,4122.4,2.42571282]
[1758765746432,0.1989,4123.3,4121.9,2.021]
[1758765746632,2.42540354,4123.1,4121.9,2.42606564]
[1758765746845,0.792,4123.2,4121.8,0.2271]
[1758765747045,3.0,4122.9,4121.8,0.2271]